bitfinex-derivatives/quotes_SOLF0:USTF0_20241008
["timestamp","ask_amount","ask_price","bid_price","bid_amount"]
[1728348019784,3.4578,144.62,144.56,1.3861]
[1728348020384,3.4578,144.62,144.59,3.4584]
[1728348020582,3.4578,144.62,144.56,1.3861]
[1728348020788,3.4574,144.64,144.56,1.3861]
[1728348020980,5.64502,144.65,144.59,3.4583]
[1728348021387,3.4578,144.63,144.59,3.4583]
[1728348021683,5.64502,144.65,144.56,1.3861]
[1728348023176,3.4578,144.62,144.58,3.4587]
[1728348034585,5.64502,144.65,144.58,16.61]
[1728348034586,3.4574,144.64,144.58,16.61]
[1728348035189,3.4574,144.64,144.6,3.4581]
[1728348035386,3.4574,144.64,144.58,16.61]
[1728348035787,3.4574,144.64,144.61,3.458]
[1728348036892,5.64502,144.65,144.58,16.61]
[1728348037098,3.4577,144.63,144.58,16.61]
[1728348037690,3.4577,144.63,144.59,3.4583]
[1728348038092,3.4578,144.62,144.59,3.4583]
[1728348039995,16.61,144.64,144.56,1.3861]
[1728348040193,3.4586,144.59,144.56,4.8452]
[1728348042009,3.4584,144.6,144.57,14.0888]
[1728348042505,3.4584,144.6,144.57,10.63]
[1728348042804,3.4582,144.61,144.58,10.63]
[1728348043701,3.4582,144.61,144.58,14.0886]
[1728348044308,10.63,144.62,144.56,1.3861]
[1728348044505,3.4589,144.58,144.53,1.52442]
[1728348044703,10.63,144.6,144.54,10.63]
[1728348044907,3.4593,144.56,144.53,3.58482]
[1728348045099,3.4593,144.56,144.53,0.12502]
[1728348045803,6.8328,144.61,144.55,10.63]
[1728348046000,3.4585,144.6,144.57,3.4588]
[1728348046210,5.5,144.61,144.58,10.63]
[1728348046400,8.9582,144.61,144.58,10.63]
[1728348046600,8.9582,144.61,144.57,3.4588]
[1728348047205,5.5,144.61,144.58,3.4586]
[1728348048906,8.9581,144.61,144.58,3.4586]
[1728348049425,5.5,144.61,144.58,3.4586]
[1728348051515,8.9581,144.61,144.58,3.4586]
[1728348051817,5.5,144.61,144.59,3.4585]
[1728348052017,3.4577,144.63,144.57,16.6]
[1728348052517,8.9576,144.64,144.6,3.4581]
[1728348052711,5.5,144.64,144.6,3.4581]
[1728348052909,1.45782,144.65,144.59,16.6]
[1728348053104,3.4575,144.64,144.6,3.4582]
[1728348055116,4.91502,144.65,144.61,3.4579]
[1728348056109,0.12502,144.65,144.61,16.6]
[1728348057108,0.12502,144.65,144.63,16.6]
[1728348057307,95.82536224,144.71,144.64,5.5]
[1728348057308,0.12502,144.71,144.64,5.5]
[1728348057516,0.12502,144.71,144.67,3.4565]
[1728348057820,0.12502,144.71,144.66,16.6]
[1728348058204,0.12502,144.71,144.67,3.4565]
[1728348058816,0.12502,144.71,144.66,3.4568]
[1728348059024,0.12502,144.71,144.64,22.1]
[1728348059214,0.12502,144.71,144.64,5.5]
[1728348061117,3.456,144.7,144.66,3.4568]
[1728348062119,3.4566,144.67,144.63,3.4575]
[1728348062514,3.4565,144.68,144.64,3.4572]
[1728348063614,5.5,144.69,144.62,1.337]
[1728348063815,3.4568,144.67,144.62,1.337]
[1728348064118,5.5,144.69,144.62,1.337]
[1728348064314,8.9563,144.69,144.65,3.4569]
[1728348064508,8.9563,144.69,144.62,1.337]
[1728348064918,8.9563,144.69,144.65,3.4569]
[1728348065219,8.9563,144.69,144.62,1.337]
[1728348065821,8.9563,144.69,144.65,3.4569]
[1728348068719,5.5,144.69,144.62,1.337]
[1728348069024,3.4567,144.67,144.62,6.837]
[1728348069411,5.5,144.69,144.61,16.6]
[1728348069722,16.6,144.68,144.6,5.5]
[1728348069917,1.3404,144.68,144.6,16.6]
[1728348070213,4.7969,144.68,144.6,22.1]
[1728348070523,4.7969,144.68,144.64,3.4572]
[1728348072217,3.4567,144.67,144.63,3.4575]
[1728348072417,3.4567,144.67,144.61,5.5]
[1728348072722,3.4567,144.67,144.63,3.4574]
[1728348073935,3.4567,144.67,144.64,3.4573]
[1728348075522,3.4562,144.69,144.66,3.4568]
[1728348076822,6.8304,144.7,144.66,3.4567]
[1728348077517,0.12502,144.71,144.64,16.6]
[1728348078021,0.12502,144.71,144.68,3.4562]
[1728348078715,3.58072,144.71,144.68,3.4562]
[1728348079924,3.58072,144.71,144.64,16.6]
[1728348080124,3.4559,144.7,144.67,3.4565]
[1728348081030,3.4559,144.7,144.66,3.4567]
[1728348082421,0.12502,144.71,144.66,16.6]
[1728348083825,0.12502,144.71,144.68,3.4562]
[1728348084030,0.12502,144.71,144.68,16.6]
[1728348084425,0.12502,144.71,144.66,4.83808058]
[1728348084723,0.12502,144.71,144.67,5.5]
[1728348085925,3.456,144.7,144.67,3.4565]
[1728348087628,3.456,144.7,144.65,23.481]
[1728348087931,3.456,144.7,144.68,3.4563]
[1728348088525,3.456,144.7,144.68,14.0763]
[1728348090126,0.12502,144.71,144.68,14.0763]
[1728348090326,3.58082,144.71,144.68,14.0763]
[1728348091130,0.12502,144.71,144.7,3.4559]
[1728348092126,0.12502,144.71,144.7,14.0759]
[1728348095938,0.12502,144.71,144.69,10.62]
[1728348096128,0.12502,144.71,144.65,6.881]
[1728348096434,0.12502,144.71,144.67,10.62]
[1728348096829,3.4559,144.7,144.68,3.4564]
[1728348097138,0.12502,144.71,144.68,3.4564]
[1728348097635,3.58092,144.71,144.68,3.4564]
[1728348099939,3.58092,144.71,144.68,14.0764]
[1728348100139,0.12502,144.71,144.69,10.62]
[1728348100332,0.12502,144.71,144.69,14.0761]
[1728348102233,0.12502,144.71,144.69,10.62]
[1728348102438,0.12502,144.71,144.68,14.0762]
[1728348103035,3.4559,144.7,144.67,3.4565]
[1728348103340,0.12502,144.71,144.67,10.62]
[1728348104434,3.58082,144.71,144.68,3.4563]
[1728348115653,3.4562,144.69,144.66,10.62]
[1728348115850,3.4562,144.69,144.58,18.99607677]
[1728348115851,10.62,144.69,144.58,18.99607677]
[1728348116039,3.4572,144.65,144.62,14.0777]
[1728348116238,10.62,144.67,144.61,10.62]
[1728348116945,3.4572,144.65,144.62,14.0776]
[1728348117146,3.4572,144.65,144.62,10.62]
[1728348117343,3.4567,144.67,144.64,14.0772]
[1728348120851,5.48,144.68,144.64,10.62]
[1728348121050,10.62,144.66,144.6,6.88]
[1728348121258,10.62,144.66,144.61,10.62]
[1728348121460,19.48100642,144.68,144.62,10.62]
[1728348121957,19.48100642,144.68,144.62,14.0777]
[1728348122456,3.4569,144.66,144.63,3.4575]
[1728348123264,3.4572,144.65,144.62,14.0778]
[1728348123563,19.48100642,144.68,144.61,10.62]
[1728348123957,3.4574,144.64,144.61,14.0779]
[1728348124157,10.62,144.66,144.6,1.4]
[1728348124356,10.62,144.66,144.6,12.02]
[1728348124559,3.4576,144.63,144.6,15.4782]
[1728348125862,19.48100642,144.68,144.61,10.62]
[1728348126062,19.48100642,144.68,144.63,10.62]
[1728348126063,3.4572,144.65,144.63,10.62]
[1728348128169,2.7513,144.7,144.64,10.62]
[1728348128467,8.2313,144.7,144.66,14.0766]
[1728348129057,3.4563,144.69,144.66,10.62]
[1728348129965,3.4563,144.69,144.65,14.077]
[1728348130165,3.4566,144.68,144.65,10.62]
[1728348130367,3.48507403,144.68,144.63,5.48]
[1728348130567,3.48507403,144.68,144.63,16.1]
[1728348131355,3.48507403,144.68,144.64,3.4573]
[1728348131356,3.4567,144.67,144.64,3.4573]
[1728348131963,14.10507403,144.68,144.63,16.1]
[1728348132168,3.4567,144.67,144.63,19.5575]
[1728348132567,3.4567,144.67,144.64,3.4573]
[1728348137275,3.4567,144.67,144.64,14.0773]
[1728348137568,8.2313,144.7,144.65,10.62]
[1728348137773,0.12502,144.71,144.66,10.62]
[1728348137971,0.12502,144.71,144.68,10.62]
[1728348138365,0.12502,144.71,144.68,14.0762]
[1728348141468,0.12502,144.71,144.69,3.4561]
[1728348141666,0.12502,144.71,144.68,10.62]
[1728348142263,0.12502,144.71,144.69,10.62]
[1728348142867,0.12502,144.71,144.7,3.4559]
[1728348145470,0.12502,144.71,144.7,4.7825]
[1728348147065,3.4547,144.75,144.7,1.3266]
[1728348147379,3.4547,144.75,144.74,10.62]
[1728348147779,3.57932,144.77,144.74,14.0748]
[1728348147974,0.12502,144.77,144.76,10.62]
[1728348148366,0.12502,144.77,144.76,14.0745]
[1728348150770,192.2686094,144.84,144.79,3.4537]
[1728348150969,197.7486094,144.84,144.8,10.62]
[1728348151166,195.7213094,144.84,144.81,3.4532]
[1728348151366,201.2013094,144.84,144.81,3.4532]
[1728348151579,195.7213094,144.84,144.81,3.4532]
[1728348151781,195.7213094,144.84,144.8,14.0734]
[1728348151985,192.9214094,144.84,144.82,10.62]
[1728348152478,192.9214094,144.84,144.8,3.4534]
[1728348152672,189.4687094,144.84,144.79,16.57]
[1728348153479,189.4687094,144.84,144.81,3.4531]
[1728348154177,192.9213094,144.84,144.81,3.4531]
[1728348155079,3.4526,144.84,144.81,3.4531]
[1728348155482,5.48,144.87,144.79,22.05]
[1728348155684,3.57792,144.83,144.8,3.4535]
[1728348157186,0.12502,144.83,144.79,22.05]
[1728348157383,0.12502,144.83,144.81,16.57]
[1728348157681,0.12502,144.89,144.81,16.57]
[1728348157880,3.4517,144.88,144.86,16.57]
[1728348158284,0.12502,144.89,144.86,16.57]
[1728348158481,3.57652,144.89,144.86,20.0221]
[1728348159973,3.57652,144.89,144.87,3.4518]
[1728348160186,0.12502,144.89,144.87,3.4518]
[1728348161583,0.12502,144.89,144.88,16.57]
[1728348161781,0.12502,144.89,144.88,20.0216]
[1728348162177,5.60502,144.95,144.88,22.05]
[1728348162590,3.4508,144.92,144.89,3.4512]
[1728348164682,5.60502,144.95,144.88,25.5015]
[1728348164879,5.60502,144.95,144.88,22.05]
[1728348165082,3.4504,144.93,144.88,22.05]
[1728348165280,5.60502,144.95,144.88,22.05]
[1728348165882,3.4504,144.93,144.88,22.05]
[1728348166078,0.12502,144.95,144.9,3.451]
[1728348166285,0.12502,144.95,144.91,16.57]
[1728348166889,3.4503,144.94,144.91,16.57]
[1728348168881,3.4505,144.93,144.91,16.57]
[1728348169285,3.4505,144.93,144.89,3.4513]
[1728348170986,0.12502,144.95,144.92,3.4505]
[1728348171182,0.12502,144.95,144.92,20.0205]
[1728348171388,0.12502,144.95,144.92,16.57]
[1728348171586,0.12502,144.95,144.94,20.0202]
[1728348172292,3.4494,144.98,144.95,3.4498]
[1728348172492,3.4494,144.98,144.96,16.57]
[1728348173178,0.12502,145.01,144.94,16.57]
[1728348173382,3.4496,144.97,144.94,16.57]
[1728348174378,3.4497,144.96,144.94,16.57]
[1728348177894,3.4504,144.93,144.92,16.57]
[1728348178488,24.8122,144.99,144.9,16.57]
[1728348179500,3.4505,144.93,144.9,20.021]
[1728348180099,24.8122,144.99,144.9,16.57]
[1728348180393,3.4502,144.94,144.91,3.4508]
[1728348180594,24.8122,144.99,144.9,16.57]
[1728348181390,3.4506,144.93,144.9,16.57]
[1728348182800,3.4506,144.93,144.9,20.0211]
[1728348183304,3.4506,144.93,144.9,16.57]
[1728348184399,3.4507,144.92,144.9,16.57]
[1728348186499,3.4507,144.92,144.91,10.6]
[1728348190294,3.4507,144.92,144.89,4.95322]
[1728348190495,3.4509,144.91,144.9,10.6]
[1728348191098,3.4511,144.9,144.89,10.72502]
[1728348191498,3.4511,144.9,144.89,0.12502]
[1728348191701,3.4511,144.9,144.89,10.72502]
[1728348194100,3.4511,144.9,144.89,0.12502]
[1728348194303,10.6,144.9,144.83,0.12502]
[1728348194606,10.6,144.9,144.84,10.6]
[1728348194607,3.4523,144.85,144.84,10.6]
[1728348195196,10.6,144.9,144.84,10.6]
[1728348195396,3.4523,144.86,144.84,10.6]
[1728348196198,10.6,144.89,144.84,10.6]
[1728348196396,3.4523,144.85,144.84,10.6]
[1728348197704,10.6,144.89,144.84,10.6]
[1728348197908,6.7874,144.91,144.86,10.6]
[1728348197909,3.452,144.87,144.86,10.6]
[1728348202513,6.7874,144.91,144.86,10.6]
[1728348202812,6.7874,144.91,144.88,10.6]
[1728348203008,3.4514,144.89,144.86,3.4519]
[1728348203209,10.6,144.9,144.83,0.12502]
[1728348203515,10.6,144.9,144.85,10.6]
[1728348203707,3.4521,144.86,144.85,10.6]
[1728348204908,3.4526,144.84,144.83,10.72502]
[1728348205309,11.9438,144.89,144.83,10.72502]
[1728348205614,3.4521,144.87,144.85,10.6]
[1728348206113,3.4518,144.88,144.85,10.6]
[1728348206615,6.7874,144.91,144.87,10.6]
[1728348207015,3.4514,144.89,144.87,10.6]
[1728348207508,6.7874,144.91,144.87,10.6]
[1728348207717,3.4516,144.88,144.87,10.6]
[1728348208410,3.4516,144.88,144.85,20.0122]
[1728348209425,3.4515,144.89,144.86,3.4521]
[1728348212613,1.3274,144.91,144.86,3.4521]
[1728348212813,3.4516,144.88,144.86,3.4521]
[1728348213330,3.4516,144.88,144.85,16.56]
[1728348213331,3.4516,144.88,144.85,20.0122]
[1728348216020,3.4515,144.89,144.87,3.4517]
[1728348216230,3.4515,144.89,144.85,16.56]
[1728348216921,5.46,144.92,144.86,3.452]
[1728348217226,8.90030144,144.92,144.85,16.56]
[1728348217526,3.452,144.87,144.85,20.0123]
[1728348219121,3.4521,144.86,144.85,16.56]
[1728348219617,8.90030144,144.92,144.85,16.56]
[1728348220425,3.452,144.87,144.85,20.0123]
[1728348221630,3.4517,144.88,144.85,20.0123]
[1728348221929,5.46,144.92,144.85,16.56]
[1728348222123,5.46,144.92,144.86,3.4518]
[1728348222424,5.46,144.92,144.85,16.56]
[1728348222425,3.4515,144.89,144.85,16.56]
[1728348222823,3.4515,144.89,144.86,3.4518]
[1728348223724,3.4515,144.89,144.85,16.56]
[1728348224226,3.4515,144.89,144.86,3.4519]
[1728348227020,8.82633163,144.92,144.86,3.4519]
[1728348227332,3.4518,144.88,144.86,3.4519]
[1728348227533,8.82633163,144.92,144.84,5.46]
[1728348227721,3.4521,144.86,144.84,8.9124]
[1728348228127,1.3033,144.91,144.84,5.46]
[1728348229524,3.452,144.87,144.85,3.4523]
[1728348230530,3.452,144.87,144.85,14.0523]
[1728348231638,3.452,144.87,144.86,10.6]
[1728348234536,3.4517,144.88,144.86,14.052]
[1728348236133,3.4513,144.9,144.86,10.6]
[1728348236339,3.4513,144.9,144.88,10.6]
[1728348236538,3.4505,144.93,144.9,3.451]
[1728348236838,3.4505,144.93,144.91,10.6]
[1728348239653,1.3723,144.96,144.91,10.6]
[1728348239957,8.0754,144.98,144.94,10.6]
[1728348240343,3.4496,144.97,144.94,14.0502]
[1728348240843,6.7455,144.98,144.94,10.6]
[1728348241247,15.33416158,145.0,144.94,10.6]
[1728348241444,5.44,144.99,144.94,10.6]
[1728348242156,16.04,144.99,144.94,10.6]
[1728348242854,16.04,144.99,144.93,14.0503]
[1728348243048,16.04,144.99,144.93,10.6]
[1728348243049,10.6,144.98,144.93,10.6]
[1728348243850,3.57512,144.95,144.93,10.6]
[1728348244051,0.12502,144.95,144.93,10.6]
[1728348246658,0.12502,144.95,144.93,14.0504]
[1728348248152,3.57492,144.95,144.93,10.6]
[1728348248355,0.12502,144.95,144.91,10.6]
[1728348249555,3.57512,144.95,144.92,3.4506]
[1728348250159,3.57512,144.95,144.93,10.6]
[1728348251057,0.12502,144.95,144.93,14.0503]
[1728348251456,0.12502,144.95,144.92,10.6]
[1728348251961,3.57512,144.95,144.92,10.6]
[1728348252955,3.57512,144.95,144.92,14.0505]
[1728348255253,3.57512,144.95,144.93,10.6]
[1728348255857,3.57512,144.95,144.92,3.4505]
[1728348256060,3.57512,144.95,144.93,10.6]
[1728348256749,3.57512,144.95,144.93,14.0504]
[1728348258549,0.12502,144.95,144.94,10.6]
[1728348258755,0.12502,144.95,144.94,14.0502]
[1728348262165,3.4492,144.99,144.97,3.4494]
[1728348262365,5.56502,145.01,144.98,10.6]
[1728348262666,3.4489,145.0,144.98,14.0492]
[1728348262864,0.12502,145.01,144.98,14.0492]
[1728348263068,0.12502,145.01,144.98,10.6]
[1728348263069,3.57372,145.01,144.98,10.6]
[1728348263257,3.57372,145.01,144.98,14.0492]
[1728348263755,3.4488,145.0,144.98,10.6]
[1728348265058,0.12502,145.01,144.98,10.6]
[1728348265258,3.57362,145.01,144.98,10.6]
[1728348267857,3.57362,145.01,144.98,14.0492]
[1728348274063,0.12502,145.01,144.99,14.0489]
[1728348274270,0.12502,145.01,144.99,10.6]
[1728348274566,3.57362,145.01,144.99,10.6]
[1728348274872,0.12502,145.01,144.93,5.44]
[1728348275171,3.4488,145.0,144.97,14.0494]
[1728348275368,0.12502,145.01,144.97,10.6]
[1728348276463,3.4489,145.0,144.97,10.6]
[1728348276664,0.12502,145.01,144.97,10.6]
[1728348276665,10.72502,145.01,144.97,10.6]
[1728348276966,3.4492,144.99,144.97,10.6]
[1728348277167,10.72502,145.01,144.97,10.6]
[1728348277975,3.4491,144.99,144.97,10.6]
[1728348278564,3.4492,144.98,144.97,10.6]
[1728348279569,10.72502,145.01,144.97,10.6]
[1728348279769,3.4491,144.99,144.97,10.6]
[1728348280479,3.4496,144.97,144.94,3.45]
[1728348280776,10.6,144.98,144.91,2.7838]
[1728348280966,5.44,144.97,144.93,10.6]
[1728348282576,3.4501,144.95,144.93,10.6]
[1728348283571,3.4501,144.95,144.94,10.6]
[1728348286785,3.4501,144.95,144.92,3.4506]
[1728348286786,3.4504,144.93,144.92,10.6]
[1728348286972,16.04,144.97,144.91,1.3614]
[1728348287274,10.6,144.94,144.89,10.72502]
[1728348287475,3.451,144.91,144.89,10.72502]
[1728348287676,10.6,144.94,144.89,10.72502]
[1728348288383,3.4508,144.92,144.89,10.72502]
[1728348289977,3.4508,144.92,144.9,10.6]
[1728348293084,3.4508,144.92,144.89,14.17632]
[1728348294694,10.6,144.94,144.89,10.72502]
[1728348294875,3.4511,144.9,144.89,0.12502]
[1728348298689,3.4507,144.92,144.89,0.12502]
[1728348298899,3.4507,144.92,144.89,10.72502]
[1728348299087,5.42,144.95,144.91,14.0508]
[1728348299597,5.42,144.95,144.91,10.6]
[1728348299792,5.42,144.95,144.92,3.4506]
[1728348300279,5.42,144.97,144.94,14.05]
[1728348300483,6.7805,144.99,144.95,10.6]
[1728348300890,20.82368153,145.0,144.95,10.6]
[1728348301495,3.4493,144.98,144.95,14.0499]
[1728348301788,3.4493,144.98,144.95,10.6]
[1728348303694,0.12518,145.03,144.97,10.6]
[1728348303902,0.12518,145.03,145.0,10.6]
[1728348304293,3.4483,145.02,145.0,10.6]
[1728348304896,3.4483,145.02,145.0,15.80819046]
[1728348305201,3.4483,145.02,145.0,5.20819046]
[1728348306293,0.12518,145.03,145.0,5.20819046]
[1728348306592,0.12518,145.03,145.0,19.25689046]
[1728348307895,0.12518,145.03,145.0,14.0487]
[1728348308098,0.12518,145.03,145.0,19.25780978]
[1728348311318,0.12518,145.03,145.0,21.22910978]
[1728348311514,0.12502,145.07,145.06,10.6]
[1728348312319,3.57212,145.07,145.06,10.6]
[1728348312520,0.12502,145.07,145.0,70.63432183]
[1728348312722,3.4481,145.03,145.01,5.21044692]
[1728348312917,3.4481,145.03,145.02,5.21044692]
[1728348313123,10.6,145.04,145.02,5.21044692]
[1728348313324,10.6,145.04,145.0,10.6]
[1728348313519,10.6,145.04,144.97,7.6636]
[1728348313520,10.6,145.03,145.01,5.21228302]
[1728348313720,10.6,145.03,144.97,11.9656]
[1728348313721,3.449,144.99,144.97,11.9656]
[1728348314022,3.449,144.99,144.98,5.21349186]
[1728348314518,5.42,145.03,144.98,15.81349186]
[1728348314721,5.42,145.03,145.0,10.6]
[1728348315727,3.4488,145.02,145.0,10.6]
[1728348316618,5.42,145.03,145.0,10.6]
[1728348316915,3.4489,145.01,144.98,10.6]
[1728348317122,10.6,145.02,144.99,5.21573956]
[1728348317324,10.6,145.01,144.96,11.8991]
[1728348317629,10.6,144.98,144.97,5.21710393]
[1728348317930,5.42,144.99,144.96,10.6]
[1728348318227,3.4498,144.97,144.96,10.6]
[1728348318533,10.6,145.0,144.96,15.81789781]
[1728348318829,10.6,145.0,144.97,5.21789781]
[1728348319128,3.4498,144.97,144.95,10.72502]
[1728348319326,3.4498,144.97,144.96,5.2199886]
[1728348320128,16.02,144.99,144.95,0.12502]
[1728348320325,3.45,144.96,144.95,0.12502]
[1728348320625,3.45,144.96,144.95,5.34704116]
[1728348320931,14.05,144.96,144.95,1.03384116]
[1728348321222,3.4514,144.91,144.89,0.12502]
[1728348321429,16.02,144.93,144.89,10.72502]
[1728348321924,5.42,144.93,144.91,10.6]
[1728348322625,3.4507,144.94,144.9,3.4515]
[1728348323530,5.42,144.96,144.89,0.12502]
[1728348323729,3.4508,144.93,144.89,3.57662]
[1728348324427,3.4506,144.94,144.9,3.4513]
[1728348325528,3.4508,144.93,144.89,20.14662]
[1728348326229,3.451,144.92,144.89,20.14662]
[1728348326533,3.451,144.92,144.89,0.12502]
[1728348326828,8.92352932,144.96,144.89,0.12502]
[1728348327632,3.4511,144.92,144.89,0.12502]
[1728348328532,3.4505,144.94,144.89,0.12502]
[1728348328730,8.92352932,144.96,144.89,0.12502]
[1728348330234,3.4511,144.92,144.89,0.12502]
[1728348332233,3.4513,144.91,144.89,0.12502]
[1728348334227,10.24662932,144.96,144.89,0.12502]
[1728348334436,3.4515,144.9,144.89,0.12502]
[1728348338331,5.42,144.92,144.89,0.12502]
[1728348341046,3.4515,144.9,144.89,0.12502]
[1728348342247,21.99,144.92,144.84,16.57]
[1728348342248,3.4522,144.88,144.84,16.57]
[1728348342430,21.99,144.92,144.84,20.0227]
[1728348342842,3.4521,144.88,144.84,3.4527]
[1728348343143,21.99,144.92,144.84,3.4527]
[1728348343637,3.4521,144.88,144.84,3.4527]
[1728348343838,21.99,144.92,144.84,3.4527]
[1728348344240,3.4521,144.88,144.84,3.4527]
[1728348344432,3.4521,144.88,144.84,14.0527]
[1728348344945,3.4523,144.87,144.84,3.4529]
[1728348345849,3.4523,144.87,144.83,10.72502]
[1728348345850,3.4525,144.86,144.83,14.17802]
[1728348346939,3.4528,144.85,144.83,10.72502]
[1728348348041,3.4528,144.85,144.83,14.17812]
[1728348351641,3.4529,144.84,144.83,0.12502]
[1728348357861,8.8729,144.84,144.83,0.12502]
[1728348358062,8.8729,144.84,144.77,0.12502]
[1728348358063,5.42,144.84,144.77,0.12502]
[1728348358260,5.42,144.84,144.78,3.4542]
[1728348358261,10.6,144.83,144.78,3.4542]
[1728348358759,3.454,144.8,144.77,3.57942]
[1728348358949,10.6,144.83,144.77,14.17942]
[1728348359352,3.454,144.8,144.77,14.17942]
[1728348360968,10.6,144.83,144.77,14.17942]
[1728348361262,10.6,144.78,144.77,0.12502]
[1728348361564,5.42,144.79,144.77,10.72502]
[1728348361759,5.42,144.8,144.77,10.72502]
[1728348362150,8.874,144.8,144.77,14.17942]
[1728348362962,6.15284803,144.86,144.79,10.6]
[1728348363151,5.42,144.85,144.81,10.6]
[1728348364461,3.453,144.84,144.81,10.6]
[1728348364863,16.02,144.85,144.81,10.6]
[1728348365164,3.4534,144.82,144.81,10.6]
[1728348365758,16.02,144.85,144.79,10.6]
[1728348367455,10.6,144.84,144.78,10.6]
[1728348367657,10.6,144.82,144.77,0.12502]
[1728348367856,16.02,144.81,144.77,0.12502]
[1728348368065,5.42,144.8,144.77,0.12502]
[1728348368667,3.4542,144.79,144.77,0.12502]
[1728348369369,8.8739,144.8,144.77,10.72502]
[1728348370066,5.42,144.8,144.77,14.17942]
[1728348370260,5.42,144.8,144.79,10.6]
[1728348372462,3.4537,144.81,144.79,10.6]
[1728348372869,5.42,144.82,144.77,0.12502]
[1728348373073,3.4539,144.8,144.78,10.6]
[1728348374562,5.42,144.82,144.77,3.57952]
[1728348374762,5.42,144.82,144.77,14.17952]
[1728348375072,3.454,144.8,144.77,14.17952]
[1728348376172,5.42,144.82,144.77,14.17952]
[1728348376369,3.4541,144.79,144.77,14.17952]
[1728348380064,3.4543,144.78,144.77,10.72502]
[1728348380880,19.4743,144.78,144.77,0.12502]
[1728348383367,22.96049433,144.78,144.77,0.12502]
[1728348384084,19.50619433,144.78,144.71,0.12502]
[1728348384282,10.6,144.75,144.71,0.12502]
[1728348384471,5.4,144.74,144.71,0.12502]
[1728348384673,3.4555,144.73,144.71,0.12502]
[1728348385180,5.4,144.74,144.73,3.4555]
[1728348385369,5.4,144.77,144.73,10.6]
[1728348385671,3.4548,144.76,144.73,14.0554]
[1728348391980,0.12502,144.83,144.76,10.6]
[1728348392173,0.12502,144.83,144.81,10.6]
[1728348392976,0.12502,144.83,144.82,3.4534]
[1728348394084,0.12502,144.83,144.77,1.3541]
[1728348394979,3.4534,144.82,144.79,3.454]
[1728348395777,0.12502,144.83,144.77,1.3541]
[1728348395978,3.57832,144.83,144.77,1.3541]
[1728348396178,0.12502,144.83,144.77,1.3541]
[1728348396481,3.4534,144.82,144.77,1.3541]
[1728348396688,3.4534,144.82,144.79,3.454]
[1728348401596,0.12502,144.83,144.79,3.454]
[1728348401797,0.12502,144.83,144.77,4.8085]
[1728348402207,0.12502,144.83,144.77,1.3541]
[1728348402496,3.454,144.8,144.77,1.3541]
[1728348403096,3.4542,144.79,144.77,4.8085]
[1728348403891,3.454,144.8,144.77,4.8085]
[1728348404089,5.4,144.82,144.75,20.035]
[1728348404293,5.4,144.82,144.75,3.455]
[1728348404294,3.4546,144.77,144.75,3.455]